[Event "UK Open Blitz Championships 2024 - London Qualifier"]
[Site "London, United Kingdom"]
[Date "2024.09.21"]
[Round "9.4"]
[White "Mirzoeva, Elmira"]
[Black "Kirk, Ezra"]
[Result "1/2-1/2"]
[TimeControl "3 minutes + 2 seconds incr. from move 1"]
[WhiteTitle "WGM"]
[BlackTitle "IM"]
[WhiteFideId "4127951"]
[BlackFideId "600067"]
[WhiteElo "2094"]
[BlackElo "2219"]

1. d4 {[%clk 00:03:02]} {[%emt 00:00:02]} Nf6 {[%clk 00:03:03]} {[%emt
00:00:02]} 2. c4 {[%clk 00:03:03]} g6 {[%clk 00:03:02]} {[%emt 00:00:03]} 3.
Nc3 {[%clk 00:03:04]} Bg7 {[%clk 00:03:03]} {[%emt 00:00:01]} 4. e4 {[%clk
00:03:04]} {[%emt 00:00:02]} d6 {[%clk 00:03:04]} 5. Nf3 {[%clk 00:03:04]}
{[%emt 00:00:02]} O-O {[%clk 00:03:04]} {[%emt 00:00:02]} 6. Be2 {[%clk
00:03:05]} {[%emt 00:00:02]} Nbd7 {[%clk 00:03:02]} {[%emt 00:00:03]} 7. Be3
{[%clk 00:03:03]} {[%emt 00:00:05]} e5 {[%emt 00:00:15]} 8. O-O {[%clk
00:02:59]} Ng4 {[%clk 00:02:49]} {[%emt 00:00:08]} 9. Bg5 {[%clk 00:02:59]}
{[%emt 00:00:01]} f6 {[%clk 00:02:50]} {[%emt 00:00:01]} 10. Bc1 {[%clk
00:02:56]} {[%emt 00:00:04]} Nh6 {[%clk 00:02:43]} {[%emt 00:00:09]} 11. h3
{[%clk 00:02:50]} {[%emt 00:00:09]} Nf7 {[%clk 00:02:43]} {[%emt 00:00:02]} 12.
Be3 {[%clk 00:02:50]} {[%emt 00:00:02]} Bh6 {[%clk 00:02:39]} {[%emt 00:00:06]}
13. Bxh6 {[%clk 00:02:46]} {[%emt 00:00:06]} Nxh6 {[%clk 00:02:40]} {[%emt
00:00:02]} 14. Qd2 {[%clk 00:02:46]} {[%emt 00:00:01]} Nf7 {[%clk 00:02:37]}
{[%emt 00:00:05]} 15. Rad1 {[%clk 00:02:44]} {[%emt 00:00:05]} b6 {[%clk
00:02:07]} {[%emt 00:00:31]} 16. Rfe1 {[%clk 00:02:39]} {[%emt 00:00:07]} Bb7
{[%clk 00:02:07]} {[%emt 00:00:02]} 17. Bf1 {[%clk 00:02:40]} {[%emt 00:00:02]}
Qe7 {[%clk 00:02:05]} {[%emt 00:00:03]} 18. Nd5 {[%clk 00:02:37]} {[%emt
00:00:05]} Bxd5 {[%clk 00:02:05]} {[%emt 00:00:02]} 19. cxd5 {[%clk 00:02:33]}
{[%emt 00:00:06]} a5 {[%clk 00:02:00]} {[%emt 00:00:07]} 20. Rc1 {[%clk
00:02:33]} {[%emt 00:00:02]} Ra7 {[%clk 00:01:49]} {[%emt 00:00:13]} 21. Rc2
{[%clk 00:02:28]} {[%emt 00:00:07]} Rc8 {[%clk 00:00:56]} {[%emt 00:00:55]} 22.
Bb5 {[%clk 00:02:14]} {[%emt 00:00:17]} Nd8 {[%clk 00:00:32]} {[%emt 00:00:25]}
23. Rec1 {[%clk 00:02:09]} {[%emt 00:00:07]} exd4 {[%clk 00:00:32]} {[%emt
00:00:03]} 24. Nxd4 {[%clk 00:02:09]} {[%emt 00:00:03]} Nc5 {[%clk 00:00:32]}
25. f3 {[%clk 00:02:10]} {[%emt 00:00:02]} Raa8 {[%clk 00:00:13]} {[%emt
00:00:21]} 26. b3 {[%clk 00:02:08]} {[%emt 00:00:03]} Qe5 {[%clk 00:00:11]}
{[%emt 00:00:04]} 27. a3 {[%clk 00:02:06]} {[%emt 00:00:04]} a4 {[%clk
00:00:10]} {[%emt 00:00:02]} 28. bxa4 {[%clk 00:01:40]} {[%emt 00:00:28]} Ndb7
{[%clk 00:00:06]} {[%emt 00:00:07]} 29. Nc6 {[%clk 00:01:29]} {[%emt 00:00:12]}
Qg3 {[%clk 00:00:04]} {[%emt 00:00:04]} 30. Ne7+ {[%clk 00:01:26]} {[%emt
00:00:05]} Kg7 {[%clk 00:00:06]} 31. Nxc8 {[%clk 00:01:22]} {[%emt 00:00:06]}
Rxc8 {[%clk 00:00:07]} 32. Qd4 {[%clk 00:00:48]} {[%emt 00:00:36]} Na5 {[%clk
00:00:06]} {[%emt 00:00:03]} 33. Qf2 {[%clk 00:00:38]} {[%emt 00:00:12]} Qe5
{[%clk 00:00:07]} {[%emt 00:00:01]} 34. Rb1 {[%clk 00:00:31]} {[%emt 00:00:09]}
g5 {[%clk 00:00:08]} {[%emt 00:00:01]} 35. Qe3 {[%clk 00:00:31]} {[%emt
00:00:03]} h5 {[%clk 00:00:08]} {[%emt 00:00:02]} 36. Qc3 {[%clk 00:00:30]}
{[%emt 00:00:03]} h4 {[%clk 00:00:07]} {[%emt 00:00:04]} 37. Qxe5 {[%clk
00:00:31]} {[%emt 00:00:01]} fxe5 {[%clk 00:00:07]} {[%emt 00:00:01]} 38. Kf2
{[%clk 00:00:26]} {[%emt 00:00:06]} Nab3 {[%clk 00:00:05]} {[%emt 00:00:04]} 39.
Ke3 {[%clk 00:00:24]} {[%emt 00:00:04]} Nd4 {[%clk 00:00:06]} {[%emt 00:00:02]}
40. Rc4 {[%clk 00:00:23]} {[%emt 00:00:02]} Ra8 {[%clk 00:00:06]} {[%emt
00:00:03]} 41. Rbb4 {[%clk 00:00:19]} {[%emt 00:00:07]} Kf6 {[%clk 00:00:05]}
{[%emt 00:00:03]} 42. Bc6 {[%clk 00:00:13]} {[%emt 00:00:08]} Ra5 {[%clk
00:00:05]} {[%emt 00:00:02]} 43. Bb5 {[%clk 00:00:13]} {[%emt 00:00:02]} Ra7
{[%clk 00:00:05]} {[%emt 00:00:03]} 44. Bc6 {[%clk 00:00:11]} {[%emt 00:00:04]}
Ra5 {[%clk 00:00:05]} {[%emt 00:00:03]} 45. Bb5 {[%clk 00:00:11]} {[%emt
00:00:02]} Ra8 {[%clk 00:00:05]} {[%emt 00:00:02]} 46. Rxd4 {[%clk 00:00:11]}
{[%emt 00:00:02]} exd4+ {[%clk 00:00:06]} {[%emt 00:00:01]} 47. Kxd4 {[%clk
00:00:12]} {[%emt 00:00:02]} Ra7 {[%clk 00:00:05]} {[%emt 00:00:03]} 48. Bc6
{[%clk 00:00:12]} {[%emt 00:00:02]} Ra5 {[%clk 00:00:05]} {[%emt 00:00:02]} 49.
Bb5 {[%clk 00:00:12]} {[%emt 00:00:03]} Ra8 {[%clk 00:00:05]} {[%emt 00:00:02]}
50. Bc6 {[%clk 00:00:12]} {[%emt 00:00:02]} Ra7 {[%clk 00:00:05]} {[%emt
00:00:02]} 1/2-1/2

[Event "UK Open Blitz Championships 2024 - London Qualifier"]
[Site "London, United Kingdom"]
[Date "2024.09.21"]
[Round "10.1"]
[White "Royal, Shreyas"]
[Black "Korshunov, Sergey"]
[Result "1/2-1/2"]
[TimeControl "3 minutes + 2 seconds incr. from move 1"]
[WhiteTitle "IM"]
[BlackTitle "FM"]
[WhiteFideId "448869"]
[BlackFideId "34274715"]
[WhiteElo "2331"]
[BlackElo "2278"]

1. d4 {[%clk 00:03:03]} Nf6 {[%clk 00:03:04]} {[%emt 00:00:01]} 2. c4 {[%clk
00:03:04]} e6 {[%clk 00:03:05]} 3. Nf3 {[%clk 00:03:05]} d5 {[%clk 00:03:06]}
{[%emt 00:00:01]} 4. Nc3 {[%clk 00:03:06]} {[%emt 00:00:01]} Be7 {[%clk
00:03:06]} {[%emt 00:00:02]} 5. Bf4 {[%clk 00:03:07]} {[%emt 00:00:02]} O-O
{[%clk 00:03:03]} {[%emt 00:00:05]} 6. e3 {[%clk 00:03:08]} b6 {[%clk
00:03:04]} {[%emt 00:00:01]} 7. Qc2 {[%clk 00:03:09]} Bb7 {[%clk 00:03:00]}
{[%emt 00:00:06]} 8. Rc1 {[%clk 00:03:06]} {[%emt 00:00:04]} c5 {[%clk
00:02:56]} {[%emt 00:00:06]} 9. cxd5 {[%clk 00:03:01]} {[%emt 00:00:07]} Nxd5
{[%clk 00:02:36]} {[%emt 00:00:22]} 10. Nxd5 {[%clk 00:03:02]} {[%emt
00:00:01]} Bxd5 {[%clk 00:02:36]} {[%emt 00:00:02]} 11. dxc5 {[%clk 00:02:55]}
{[%emt 00:00:08]} Bxc5 {[%clk 00:02:37]} {[%emt 00:00:01]} 12. a3 {[%clk
00:02:56]} a5 {[%clk 00:02:32]} {[%emt 00:00:07]} 13. Bd3 {[%clk 00:02:52]}
{[%emt 00:00:06]} h6 {[%clk 00:02:33]} 14. O-O {[%clk 00:02:51]} {[%emt
00:00:03]} Nd7 {[%clk 00:02:29]} {[%emt 00:00:06]} 15. Rfd1 {[%clk 00:02:48]}
{[%emt 00:00:04]} Qe7 {[%clk 00:02:27]} {[%emt 00:00:05]} 16. Bb5 {[%clk
00:02:43]} {[%emt 00:00:08]} Nf6 {[%clk 00:02:16]} {[%emt 00:00:13]} 17. Ne5
{[%clk 00:02:25]} {[%emt 00:00:20]} Rac8 {[%clk 00:02:15]} {[%emt 00:00:03]} 18.
Qe2 {[%clk 00:02:22]} {[%emt 00:00:04]} Rfd8 {[%clk 00:02:09]} {[%emt
00:00:09]} 19. Bg3 {[%emt 00:00:09]} Ne4 {[%clk 00:02:06]} 20. Bf4 {[%clk
00:02:05]} {[%emt 00:00:16]} Nd6 {[%clk 00:01:54]} {[%emt 00:00:15]} 21. Bd3
{[%clk 00:02:01]} {[%emt 00:00:06]} Be4 {[%clk 00:01:39]} {[%emt 00:00:17]} 22.
Bxe4 {[%clk 00:01:52]} {[%emt 00:00:11]} Nxe4 {[%clk 00:01:40]} {[%emt
00:00:01]} 23. Rxd8+ {[%clk 00:01:42]} {[%emt 00:00:12]} Qxd8 {[%clk 00:01:40]}
{[%emt 00:00:01]} 24. Rd1 {[%clk 00:01:37]} {[%emt 00:00:06]} Qf6 {[%clk
00:01:13]} {[%emt 00:00:30]} 25. Nd7 {[%clk 00:01:31]} {[%emt 00:00:09]} Qe7
{[%clk 00:01:02]} {[%emt 00:00:14]} 26. Nxc5 {[%clk 00:01:23]} {[%emt
00:00:09]} Rxc5 {[%clk 00:00:41]} {[%emt 00:00:22]} 27. Qf3 {[%clk 00:01:07]}
{[%emt 00:00:18]} Rd5 {[%clk 00:00:36]} {[%emt 00:00:08]} 28. Rc1 {[%clk
00:01:03]} {[%emt 00:00:06]} Nf6 {[%clk 00:00:37]} 29. h3 {[%clk 00:00:59]}
{[%emt 00:00:06]} e5 {[%clk 00:00:33]} {[%emt 00:00:06]} 30. Bg3 {[%clk
00:01:00]} Rd2 {[%clk 00:00:23]} {[%emt 00:00:12]} 31. Bh4 {[%clk 00:00:59]}
{[%emt 00:00:04]} Qe6 {[%clk 00:00:12]} {[%emt 00:00:13]} 32. Rc6 {[%clk
00:00:47]} {[%emt 00:00:14]} Qd5 {[%clk 00:00:07]} {[%emt 00:00:08]} 33. Bxf6
{[%clk 00:00:45]} {[%emt 00:00:04]} Qxf3 {[%clk 00:00:08]} 34. gxf3 {[%clk
00:00:45]} {[%emt 00:00:01]} gxf6 {[%clk 00:00:09]} {[%emt 00:00:01]} 35. Rxb6
{[%clk 00:00:46]} {[%emt 00:00:01]} Kg7 {[%clk 00:00:10]} 36. b3 {[%clk
00:00:39]} {[%emt 00:00:09]} a4 {[%clk 00:00:07]} {[%emt 00:00:05]} 37. bxa4
{[%clk 00:00:37]} {[%emt 00:00:04]} Rd3 {[%clk 00:00:08]} 38. a5 {[%clk
00:00:36]} {[%emt 00:00:03]} Rxa3 {[%clk 00:00:09]} 39. a6 {[%clk 00:00:37]}
Ra2 {[%clk 00:00:10]} {[%emt 00:00:01]} 40. Kg2 {[%clk 00:00:38]} f5 {[%clk
00:00:11]} {[%emt 00:00:02]} 41. Kg3 {[%clk 00:00:38]} {[%emt 00:00:01]} f6
{[%clk 00:00:12]} 42. Rb7+ {[%clk 00:00:37]} {[%emt 00:00:03]} Kg6 {[%clk
00:00:13]} 43. a7 {[%clk 00:00:38]} h5 {[%clk 00:00:11]} {[%emt 00:00:04]} 44.
h4 {[%clk 00:00:39]} Ra1 {[%clk 00:00:08]} {[%emt 00:00:06]} 45. Kg2 {[%clk
00:00:40]} Kh6 {[%clk 00:00:09]} 46. f4 {[%clk 00:00:27]} {[%emt 00:00:15]} e4
{[%clk 00:00:10]} 47. Rc7 {[%clk 00:00:28]} {[%emt 00:00:01]} Kg6 {[%clk
00:00:11]} {[%emt 00:00:01]} 48. Rd7 {[%clk 00:00:29]} Kh6 {[%clk 00:00:12]} 49.
f3 {[%clk 00:00:21]} {[%emt 00:00:10]} Kg6 {[%clk 00:00:12]} {[%emt 00:00:03]}
50. Re7 {[%clk 00:00:18]} {[%emt 00:00:05]} Ra2+ {[%clk 00:00:10]} {[%emt
00:00:04]} 51. Kg3 {[%clk 00:00:19]} Ra3 {[%clk 00:00:04]} {[%emt 00:00:08]} 52.
fxe4 {[%clk 00:00:20]} Rxe3+ {[%clk 00:00:05]} {[%emt 00:00:01]} 53. Kf2 {[%clk
00:00:19]} {[%emt 00:00:02]} Ra3 {[%clk 00:00:06]} 54. e5 {[%clk 00:00:18]}
{[%emt 00:00:03]} fxe5 {[%clk 00:00:07]} {[%emt 00:00:01]} 55. fxe5 {[%clk
00:00:19]} f4 {[%clk 00:00:09]} 56. Ke2 {[%clk 00:00:10]} {[%emt 00:00:11]} Kf5
{[%clk 00:00:10]} 57. Kd2 {[%clk 00:00:11]} {[%emt 00:00:02]} f3 {[%clk
00:00:11]} {[%emt 00:00:01]} 58. e6 {[%clk 00:00:10]} {[%emt 00:00:02]} Kf6
{[%clk 00:00:12]} 59. Re8 {[%clk 00:00:09]} {[%emt 00:00:03]} Rxa7 {[%clk
00:00:13]} {[%emt 00:00:02]} 60. Rf8+ {[%clk 00:00:10]} Kxe6 {[%clk 00:00:14]}
61. Rxf3 {[%clk 00:00:11]} {[%emt 00:00:01]} Ra4 {[%clk 00:00:16]} 1/2-1/2

[Event "UK Open Blitz Championships 2024 - London Qualifier"]
[Site "London, United Kingdom"]
[Date "2024.09.21"]
[Round "10.2"]
[White "Kirk, Ezra"]
[Black "Ghasi, Ameet K"]
[Result "0-1"]
[TimeControl "3 minutes + 2 seconds incr. from move 1"]
[WhiteTitle "IM"]
[BlackTitle "IM"]
[WhiteFideId "600067"]
[BlackFideId "409200"]
[WhiteElo "2219"]
[BlackElo "2524"]

1. e4 {[%clk 00:00:00]} {[%emt 00:02:09]} d6 {[%clk 00:02:58]} {[%emt
00:00:13]} 2. d4 {[%clk 00:03:03]} {[%emt 00:00:01]} g6 {[%clk 00:02:59]} 3.
Nc3 {[%clk 00:03:03]} {[%emt 00:00:02]} Nf6 {[%clk 00:03:00]} 4. h3 {[%clk
00:02:59]} {[%emt 00:00:07]} Bg7 {[%clk 00:03:00]} {[%emt 00:00:01]} 5. Be3
{[%clk 00:02:59]} {[%emt 00:00:01]} a6 {[%clk 00:02:54]} {[%emt 00:00:08]} 6.
g4 {[%clk 00:02:55]} {[%emt 00:00:07]} b5 {[%clk 00:02:34]} {[%emt 00:00:22]} 7.
Bg2 {[%clk 00:02:53]} {[%emt 00:00:03]} Bb7 {[%clk 00:02:35]} {[%emt 00:00:02]}
8. a3 {[%clk 00:02:52]} {[%emt 00:00:04]} Nbd7 {[%clk 00:02:30]} {[%emt
00:00:06]} 9. Nge2 {[%clk 00:02:45]} {[%emt 00:00:09]} c5 {[%clk 00:02:20]}
{[%emt 00:00:12]} 10. dxc5 {[%clk 00:02:35]} {[%emt 00:00:12]} Nxc5 {[%clk
00:02:13]} {[%emt 00:00:10]} 11. Ng3 {[%clk 00:02:32]} {[%emt 00:00:05]} Rc8
{[%clk 00:02:09]} {[%emt 00:00:07]} 12. O-O {[%clk 00:02:27]} {[%emt 00:00:08]}
Nfd7 {[%clk 00:01:55]} {[%emt 00:00:15]} 13. f4 {[%clk 00:01:52]} {[%emt
00:00:37]} O-O {[%clk 00:01:47]} {[%emt 00:00:11]} 14. Qe1 {[%clk 00:01:31]}
{[%emt 00:00:23]} a5 {[%clk 00:01:38]} {[%emt 00:00:11]} 15. Rd1 {[%clk
00:01:19]} {[%emt 00:00:14]} b4 {[%clk 00:01:35]} {[%emt 00:00:05]} 16. axb4
{[%clk 00:01:20]} {[%emt 00:00:01]} axb4 {[%clk 00:01:36]} 17. Nd5 {[%clk
00:01:20]} {[%emt 00:00:02]} Bxd5 {[%clk 00:01:29]} {[%emt 00:00:09]} 18. exd5
{[%clk 00:01:20]} {[%emt 00:00:02]} Na4 {[%clk 00:01:18]} {[%emt 00:00:12]} 19.
b3 {[%clk 00:00:47]} {[%emt 00:00:35]} Nc3 {[%clk 00:01:19]} {[%emt 00:00:01]}
20. Rd4 {[%clk 00:00:48]} {[%emt 00:00:01]} Bxd4 {[%clk 00:00:45]} {[%emt
00:00:36]} 21. Bxd4 {[%clk 00:00:48]} {[%emt 00:00:02]} Nb5 {[%clk 00:00:46]}
22. Ba1 {[%clk 00:00:40]} {[%emt 00:00:10]} Rxc2 {[%clk 00:00:45]} {[%emt
00:00:03]} 23. Qxb4 {[%clk 00:00:39]} {[%emt 00:00:03]} Qb6+ {[%clk 00:00:35]}
{[%emt 00:00:12]} 24. Kh1 {[%clk 00:00:39]} {[%emt 00:00:02]} Ra8 {[%clk
00:00:22]} {[%emt 00:00:15]} 25. Qe4 {[%clk 00:00:25]} {[%emt 00:00:16]} Rca2
{[%clk 00:00:16]} {[%emt 00:00:08]} 26. Qxe7 {[%clk 00:00:16]} {[%emt
00:00:11]} Rxa1 {[%clk 00:00:15]} {[%emt 00:00:04]} 27. Qxd7 {[%clk 00:00:14]}
{[%emt 00:00:04]} Qe3 {[%clk 00:00:07]} {[%emt 00:00:10]} 28. Qxb5 {[%clk
00:00:08]} {[%emt 00:00:07]} Qxg3 {[%clk 00:00:08]} {[%emt 00:00:02]} 29. b4
{[%clk 00:00:05]} {[%emt 00:00:05]} Qxf4 {[%clk 00:00:08]} {[%emt 00:00:02]} 30.
Qb6 {[%clk 00:00:04]} {[%emt 00:00:03]} Rxf1+ {[%clk 00:00:08]} {[%emt
00:00:02]} 0-1

[Event "UK Open Blitz Championships 2024 - London Qualifier"]
[Site "London, United Kingdom"]
[Date "2024.09.21"]
[Round "10.3"]
[White "Gasanov, Eldar"]
[Black "Czopor, Maciej"]
[Result "1-0"]
[TimeControl "3 minutes + 2 seconds incr. from move 1"]
[WhiteTitle "GM"]
[BlackTitle "FM"]
[WhiteFideId "14104466"]
[BlackFideId "21805431"]
[WhiteElo "2467"]
[BlackElo "2320"]

1. d4 {[%clk 00:03:02]} {[%emt 00:00:02]} Nf6 {[%clk 00:03:03]} {[%emt
00:00:01]} 2. c4 {[%clk 00:03:02]} {[%emt 00:00:01]} g6 {[%clk 00:03:03]}
{[%emt 00:00:03]} 3. Nc3 {[%clk 00:03:01]} {[%emt 00:00:02]} Bg7 {[%clk
00:03:04]} {[%emt 00:00:01]} 4. Bg5 {[%clk 00:02:59]} {[%emt 00:00:04]} d6
{[%clk 00:03:04]} {[%emt 00:00:03]} 5. e3 {[%clk 00:02:58]} {[%emt 00:00:02]}
c5 {[%clk 00:03:00]} {[%emt 00:00:07]} 6. Nf3 {[%clk 00:02:53]} {[%emt
00:00:07]} h6 {[%clk 00:03:00]} {[%emt 00:00:03]} 7. Bh4 {[%clk 00:02:52]}
{[%emt 00:00:02]} O-O {[%clk 00:02:56]} {[%emt 00:00:06]} 8. Be2 {[%clk
00:02:46]} {[%emt 00:00:08]} cxd4 {[%clk 00:02:27]} {[%emt 00:00:31]} 9. exd4
{[%clk 00:02:44]} {[%emt 00:00:04]} g5 {[%clk 00:02:28]} {[%emt 00:00:01]} 10.
Bg3 {[%clk 00:02:42]} {[%emt 00:00:04]} Nh5 {[%clk 00:02:29]} {[%emt 00:00:01]}
11. d5 {[%clk 00:02:13]} {[%emt 00:00:31]} Nd7 {[%clk 00:02:13]} {[%emt
00:00:18]} 12. Qc2 {[%clk 00:01:52]} {[%emt 00:00:23]} Nxg3 {[%clk 00:01:35]}
{[%emt 00:00:39]} 13. hxg3 {[%clk 00:01:52]} {[%emt 00:00:02]} Nf6 {[%clk
00:01:36]} {[%emt 00:00:02]} 14. Nd4 {[%clk 00:01:37]} {[%emt 00:00:16]} e6
{[%clk 00:01:02]} {[%emt 00:00:36]} 15. dxe6 {[%clk 00:01:33]} {[%emt
00:00:07]} fxe6 {[%clk 00:00:51]} {[%emt 00:00:13]} 16. Rd1 {[%clk 00:01:33]}
{[%emt 00:00:02]} Qe7 {[%clk 00:00:39]} {[%emt 00:00:15]} 17. O-O {[%clk
00:01:31]} {[%emt 00:00:03]} a6 {[%clk 00:00:39]} {[%emt 00:00:03]} 18. Na4
{[%clk 00:01:18]} {[%emt 00:00:15]} Bd7 {[%clk 00:00:34]} {[%emt 00:00:08]} 19.
Nb6 {[%clk 00:01:18]} {[%emt 00:00:02]} Rae8 {[%clk 00:00:34]} {[%emt
00:00:01]} 20. Bf3 {[%clk 00:01:00]} {[%emt 00:00:21]} e5 {[%clk 00:00:30]}
{[%emt 00:00:07]} 21. Nxd7 {[%clk 00:00:38]} {[%emt 00:00:23]} Qxd7 {[%clk
00:00:29]} {[%emt 00:00:03]} 22. Nf5 {[%clk 00:00:35]} {[%emt 00:00:05]} e4
{[%clk 00:00:30]} {[%emt 00:00:02]} 23. Nxg7 {[%clk 00:00:25]} {[%emt
00:00:12]} Kxg7 {[%clk 00:00:27]} {[%emt 00:00:05]} 24. Be2 {[%clk 00:00:26]}
e3 {[%clk 00:00:21]} {[%emt 00:00:08]} 25. Qc3 {[%clk 00:00:25]} {[%emt
00:00:03]} Qe6 {[%clk 00:00:14]} {[%emt 00:00:09]} 26. fxe3 {[%clk 00:00:19]}
{[%emt 00:00:08]} Qxe3+ {[%clk 00:00:15]} {[%emt 00:00:01]} 27. Qxe3 {[%clk
00:00:20]} Rxe3 {[%clk 00:00:16]} 28. Bf3 {[%clk 00:00:19]} {[%emt 00:00:03]}
Ne4 {[%clk 00:00:10]} {[%emt 00:00:08]} 29. Rfe1 {[%clk 00:00:10]} {[%emt
00:00:11]} Rxe1+ {[%clk 00:00:11]} {[%emt 00:00:01]} 30. Rxe1 {[%clk 00:00:11]}
Nxg3 {[%clk 00:00:11]} {[%emt 00:00:02]} 31. Bxb7 {[%clk 00:00:10]} {[%emt
00:00:03]} Rb8 {[%clk 00:00:10]} {[%emt 00:00:03]} 32. Re7+ {[%clk 00:00:10]}
{[%emt 00:00:02]} Kf6 {[%clk 00:00:11]} 33. Rh7 {[%clk 00:00:11]} Nf5 {[%clk
00:00:08]} {[%emt 00:00:06]} 34. b3 {[%clk 00:00:10]} {[%emt 00:00:03]} Kg6
{[%clk 00:00:07]} {[%emt 00:00:04]} 35. Rd7 {[%clk 00:00:11]} Re8 {[%clk
00:00:05]} {[%emt 00:00:04]} 36. g4 {[%clk 00:00:08]} {[%emt 00:00:06]} Ne3
{[%clk 00:00:04]} {[%emt 00:00:03]} 37. Rxd6+ {[%clk 00:00:09]} Kg7 {[%clk
00:00:05]} 38. Bf3 {[%clk 00:00:09]} {[%emt 00:00:01]} Nc2 {[%clk 00:00:04]}
{[%emt 00:00:03]} 39. Rd2 {[%clk 00:00:08]} {[%emt 00:00:03]} Nb4 {[%clk
00:00:04]} {[%emt 00:00:03]} 40. a3 {[%clk 00:00:09]} Re3 {[%clk 00:00:05]} 41.
Kf2 {[%clk 00:00:05]} {[%emt 00:00:06]} Rxb3 {[%clk 00:00:05]} {[%emt
00:00:02]} 42. axb4 Rxb4 {[%clk 00:00:05]} 43. c5 {[%clk 00:00:06]} Kf6 {[%clk
00:00:04]} {[%emt 00:00:04]} 44. Rd6+ {[%clk 00:00:06]} {[%emt 00:00:02]} Ke5
{[%clk 00:00:05]} {[%emt 00:00:01]} 45. Rxh6 {[%clk 00:00:07]} Rc4 {[%clk
00:00:04]} {[%emt 00:00:03]} 46. c6 {[%clk 00:00:08]} a5 {[%clk 00:00:05]} 47.
Rg6 {[%emt 00:00:03]} Kf4 {[%clk 00:00:05]} {[%emt 00:00:01]} 48. Rf6+ {[%clk
00:00:09]} {[%emt 00:00:02]} Ke5 {[%clk 00:00:06]} 49. Rf5+ {[%clk 00:00:10]}
Kd6 {[%clk 00:00:07]} 50. Rxa5 {[%clk 00:00:11]} 1-0

[Event "UK Open Blitz Championships 2024 - London Qualifier"]
[Site "London, United Kingdom"]
[Date "2024.09.21"]
[Round "10.4"]
[White "Roberson, Peter T"]
[Black "Shafi, Declan"]
[Result "1-0"]
[TimeControl "3 minutes + 2 seconds incr. from move 1"]
[WhiteTitle "IM"]
[WhiteFideId "412384"]
[BlackFideId "2405156"]
[WhiteElo "2346"]
[BlackElo "2113"]

1. e4 {[%clk 00:03:02]} {[%emt 00:00:01]} e5 {[%clk 00:03:02]} {[%emt
00:00:02]} 2. Nf3 {[%clk 00:03:03]} Nf6 {[%clk 00:03:03]} {[%emt 00:00:02]} 3.
Nxe5 {[%clk 00:02:59]} {[%emt 00:00:06]} d6 {[%clk 00:03:04]} {[%emt 00:00:01]}
4. Nf3 {[%clk 00:02:59]} {[%emt 00:00:02]} Nxe4 {[%clk 00:03:05]} {[%emt
00:00:01]} 5. d3 {[%clk 00:03:00]} Nf6 {[%clk 00:03:06]} 6. d4 {[%clk
00:03:02]} d5 {[%clk 00:03:07]} 7. Bd3 {[%clk 00:03:03]} Be7 {[%clk 00:03:07]}
{[%emt 00:00:02]} 8. O-O {[%clk 00:03:03]} {[%emt 00:00:02]} O-O {[%clk
00:03:07]} {[%emt 00:00:02]} 9. h3 {[%clk 00:03:04]} Nbd7 {[%clk 00:03:00]}
{[%emt 00:00:09]} 10. Re1 {[%clk 00:03:04]} {[%emt 00:00:02]} Re8 {[%clk
00:02:57]} {[%emt 00:00:05]} 11. Bf4 {[%clk 00:03:04]} {[%emt 00:00:03]} Nf8
{[%clk 00:02:56]} {[%emt 00:00:03]} 12. Nbd2 {[%clk 00:03:04]} {[%emt
00:00:01]} Ng6 {[%clk 00:02:54]} {[%emt 00:00:04]} 13. Bh2 {[%clk 00:03:05]}
{[%emt 00:00:01]} Be6 {[%clk 00:02:39]} {[%emt 00:00:17]} 14. c3 {[%clk
00:02:54]} {[%emt 00:00:12]} c5 {[%clk 00:02:19]} {[%emt 00:00:23]} 15. dxc5
{[%clk 00:02:40]} {[%emt 00:00:16]} Bxc5 {[%clk 00:02:17]} {[%emt 00:00:03]} 16.
Nb3 {[%clk 00:02:40]} {[%emt 00:00:02]} Bd6 {[%clk 00:02:12]} {[%emt 00:00:07]}
17. Nbd4 {[%clk 00:02:36]} {[%emt 00:00:05]} Bxh2+ {[%clk 00:02:10]} {[%emt
00:00:05]} 18. Nxh2 {[%clk 00:02:37]} {[%emt 00:00:01]} a6 {[%clk 00:01:50]}
{[%emt 00:00:22]} 19. Nhf3 {[%clk 00:02:32]} {[%emt 00:00:07]} Qd7 {[%clk
00:01:39]} {[%emt 00:00:13]} 20. Qd2 {[%clk 00:02:19]} {[%emt 00:00:15]} Qd6
{[%clk 00:01:33]} {[%emt 00:00:08]} 21. Re3 {[%clk 00:02:09]} {[%emt 00:00:12]}
Nf4 {[%clk 00:01:25]} {[%emt 00:00:10]} 22. Rae1 {[%clk 00:02:04]} {[%emt
00:00:07]} Nxd3 {[%clk 00:01:24]} {[%emt 00:00:03]} 23. Qxd3 {[%clk 00:02:01]}
{[%emt 00:00:05]} Rad8 {[%clk 00:01:15]} {[%emt 00:00:11]} 24. Ng5 {[%clk
00:01:18]} {[%emt 00:00:45]} Bd7 {[%clk 00:01:12]} {[%emt 00:00:05]} 25. Rxe8+
{[%clk 00:01:16]} {[%emt 00:00:04]} Rxe8 {[%clk 00:01:12]} {[%emt 00:00:02]} 26.
Rxe8+ {[%clk 00:01:15]} {[%emt 00:00:02]} Bxe8 {[%clk 00:01:13]} {[%emt
00:00:01]} 27. Nf5 {[%clk 00:01:12]} {[%emt 00:00:05]} h6 {[%clk 00:01:09]}
{[%emt 00:00:07]} 28. Nxd6 {[%clk 00:01:11]} {[%emt 00:00:02]} 1-0